fUSD/lending_fUSD_20240224
["ID","MTS","AMOUNT","RATE_DAILY","PERIOD"]
[315030871,1708735861240,-200.0,0.000465,21]
[315030872,1708735861250,-10000.0,0.0004656,120]
[315030873,1708735861262,-500.0,0.00046575,2]
[315030874,1708735861271,-500.0,0.00046575,2]
[315030875,1708735861281,-500.0,0.00046575,2]
[315030876,1708735861291,-500.0,0.00046575,2]
[315030877,1708735861302,-649.26710495,0.00046575,2]
[315030878,1708735861311,-500.0,0.00046575,2]
[315030879,1708735861321,-5000.0,0.00046575,30]
[315030880,1708735861331,-1000.0,0.00046575,30]
[315030881,1708735861341,-1000.0,0.00046575,70]
[315030882,1708735861351,-151.81514314,0.00046606,31]
[315030883,1708735861361,-10000.0,0.0004664,120]
[315030884,1708735861371,-2971.0,0.000467,115]
[315030885,1708735861381,-3698.28783912,0.00046717,2]
[315030886,1708735861392,-150.0,0.0004672,2]
[315030887,1708735861401,-10000.0,0.0004672,120]
[315030888,1708735861412,-2000.0,0.000468,2]
[315030889,1708735861423,-3991.45,0.000468,120]
[315030890,1708735861432,-827.91,0.00046849,2]
[315030891,1708735861442,-827.91,0.00046849,2]
[315030892,1708735861453,-827.91,0.00046849,2]
[315030893,1708735861462,-827.91,0.00046849,2]
[315030894,1708735861472,-827.91,0.00046849,2]
[315030895,1708735861482,-827.91,0.00046849,2]
[315030896,1708735861492,-827.91,0.00046849,2]
[315030897,1708735861502,-827.91,0.00046849,2]
[315030898,1708735861512,-827.91,0.00046849,2]
[315030899,1708735861521,-827.91,0.00046849,2]
[315030900,1708735861530,-827.91,0.00046849,2]
[315030901,1708735861541,-827.91,0.00046849,2]
[315030902,1708735861551,-827.91,0.00046849,2]
[315030903,1708735861560,-827.91,0.00046849,2]
[315030904,1708735861570,-827.91,0.00046849,2]
[315030905,1708735861580,-827.91,0.00046849,2]
[315030906,1708735861590,-827.91,0.00046849,2]
[315030907,1708735861599,-827.91,0.00046849,2]
[315030908,1708735861609,-827.91,0.00046849,2]
[315030909,1708735861618,-827.91,0.00046849,2]
[315030910,1708735861628,-827.91,0.00046849,2]
[315030911,1708735861638,-827.91,0.00046849,2]
[315030912,1708735861647,-827.91,0.00046849,2]
[315030913,1708735861657,-828.00965725,0.00046849,2]
[315030914,1708735861667,-5000.0,0.00046849,33]
[315030915,1708735861677,-1000.0,0.00046849,33]
[315030916,1708735861686,-1107.27,0.00046849,120]
[315030917,1708735861696,-1000.0,0.00047,30]
[315030918,1708735861706,-169.57722884,0.00047,4]
[315030919,1708735861716,-350.0,0.00047,47]
[315030920,1708735861726,-154.20563152,0.00047059,30]
[315030921,1708735861735,-500.0,0.00047122,30]
[315030922,1708735861745,-1892.79,0.00047123,20]
[315030923,1708735861756,-5000.0,0.00047123,36]
[315030924,1708735861765,-777.48099121,0.00047123,36]
[315030925,1708735861776,-1047.37,0.00047123,2]
[315030926,1708735861786,-166.022409,0.00047198,47]
[315030927,1708735861796,-1000.0,0.000472,20]
[315030928,1708735861806,-666.0,0.0004726,2]
[315030929,1708735861816,-5750.23185517,0.00047282,5]
[315030930,1708735861825,-150.0,0.00047287,7]
[315030931,1708735861835,-150.0,0.00047342,30]
[315030932,1708735861845,-150.0,0.00047342,30]
[315030933,1708735861855,-150.0,0.00047342,30]
[315030934,1708735861866,-150.0,0.00047342,30]
[315030935,1708735861882,-150.0,0.00047342,30]
[315030936,1708735861892,-150.0,0.00047342,30]
[315030937,1708735861902,-213.36830761,0.00047342,30]
[315030938,1708735861912,-150.0,0.00047342,30]
[315030939,1708735861927,-150.0,0.00047342,30]
[315030940,1708735861936,-5000.0,0.00047397,39]
[315030941,1708735861946,-150.0,0.00047406,30]
[315030942,1708735861956,-150.0,0.0004747,30]
[315030943,1708735861966,-155.76031539,0.00047487,30]
[315030944,1708735861976,-161.73,0.00047489,2]
[315030945,1708735861986,-151.81514314,0.00047491,35]
[315030946,1708735861996,-157.022409,0.00047498,51]
[315030947,1708735862007,-200.0,0.000475,22]
[315030948,1708735862017,-4276.39555069,0.00047509,23]
[315030949,1708735862027,-150.0,0.0004753,30]
[315030950,1708735862036,-150.0,0.00047534,30]
[315030951,1708735862046,-150.0,0.00047585,2]
[315030952,1708735862056,-150.0,0.00047598,30]
[315030953,1708735862065,-1000.0,0.000476,21]
[315030954,1708735862075,-150.0,0.00047634,30]
[315030955,1708735862084,-206.0,0.00047636,40]
[315030956,1708735862094,-150.0,0.00047663,30]
[315030957,1708735862104,-500.0,0.0004767,30]
[315030958,1708735862113,-150.0,0.00047718,30]
[315030959,1708735862124,-150.0,0.00047727,30]
[315030960,1708735862133,-500.0,0.0004774,90]
[315030961,1708735862143,-150.0,0.0004778,30]
[315030962,1708735862153,-150.0,0.00047791,30]
[315030963,1708735862163,-157.022409,0.00047798,51]
[315030964,1708735862173,-160.49481865,0.00047808,30]
[315030965,1708735862182,-150.0,0.00047855,30]
[315030966,1708735862193,-150.0,0.00047868,30]
[315030967,1708735862204,-154.20563152,0.00047892,30]
[315030968,1708735862214,-150.0,0.00047905,30]
[315030969,1708735862224,-150.0,0.00047919,30]
[315030970,1708735862234,-150.0,0.00047926,30]
[315030971,1708735862244,-2103.1,0.00047945,22]
[315030972,1708735862255,-2265.65405509,0.00047945,30]
[315030973,1708735862265,-1000.0,0.00047945,80]
[315030974,1708735862275,-1047.37,0.00047945,2]
[315030975,1708735862284,-173.0,0.0004797,28]
[315030976,1708735862294,-195.0,0.0004798,3]
[315030977,1708735862304,-163.0,0.0004798,120]
[315030978,1708735862313,-150.0,0.00047983,30]
[315030979,1708735862323,-195.0,0.0004799,3]
[315030980,1708735862332,-163.0,0.0004799,120]
[315030981,1708735862341,-2623.72,0.00047999,15]
[315030982,1708735862351,-2623.72,0.00047999,15]
[315030983,1708735862360,-2623.72,0.00047999,15]
[315030984,1708735862370,-2623.72,0.00047999,15]
[315030985,1708735862380,-2623.72,0.00047999,15]
[315030986,1708735862390,-2623.72,0.00047999,15]
[315030987,1708735862399,-2623.72,0.00047999,15]
[315030988,1708735862408,-2623.72,0.00047999,15]
[315030989,1708735862418,-2623.72,0.00047999,15]
[315030990,1708735862428,-2623.72,0.00047999,15]
[315030991,1708735862438,-206.80999061,0.00048,48]
[315030992,1708735862448,-1000.0,0.00048,30]
[315030993,1708735862458,-170.0,0.00048,90]
[315030994,1708735862468,-6867.21630363,0.00048,30]
[315030995,1708735862486,-239.54459077,0.00048,30]
[315030996,1708735862495,-500.0,0.00048,14]
[315030997,1708735862506,-240.145883,0.00048,25]
[315030998,1708735862590,-401.0,0.00048,90]
[315030999,1708735862600,-163.0,0.00048,90]
[315031000,1708735862609,-349.1454889,0.00048,45]
[315031001,1708735862618,-1193.18,0.00048005,2]
[315031002,1708735862627,-150.0,0.00048047,30]
[315031003,1708735862637,-150.0,0.00048054,8]
[315031004,1708735862646,-150.0,0.00048093,30]
[315031005,1708735862655,-150.0,0.00048112,30]
[315031006,1708735862665,-2416.0,0.00048159,120]
[315031007,1708735862675,-150.0,0.00048176,30]
[315031008,1708735862684,-157.022409,0.00048198,52]
[315031009,1708735862693,-500.0,0.00048218,30]
[315031010,1708735862703,-150.0,0.00048219,30]
[315031011,1708735862712,-150.0,0.00048219,30]
[315031012,1708735862722,-150.0,0.00048219,30]
[315031013,1708735862733,-150.0,0.0004824,30]
[315031014,1708735862743,-150.0,0.00048281,30]
[315031015,1708735862752,-150.0,0.00048304,30]
[315031016,1708735862763,-401.0,0.00048356,90]
[315031017,1708735862772,-150.0,0.00048368,30]
[315031018,1708735862785,-151.81514314,0.00048375,38]
[315031019,1708735862794,-150.0,0.00048394,30]
[315031020,1708735862805,-150.611562,0.00048398,30]
[315031021,1708735862815,-150.0,0.00048432,30]
[315031022,1708735862825,-150.0,0.0004845,2]
[315031023,1708735862836,-150.0,0.00048469,30]
[315031024,1708735862847,-157.51738782,0.00048483,30]
[315031025,1708735862857,-150.0,0.00048496,30]
[315031026,1708735862866,-157.022409,0.00048498,52]
[315031027,1708735862875,-200.0,0.000485,23]
[315031028,1708735862885,-960.96,0.00048507,120]
[315031029,1708735862894,-150.0,0.00048511,30]
[315031030,1708735862904,-568.32975087,0.00048532,30]
[315031031,1708735862916,-1000.0,0.00048532,30]
[315031032,1708735862925,-345.32871552,0.00048532,30]
[315031033,1708735862938,-654.67128448,0.00048532,30]
[315031034,1708735862947,-2459.19289134,0.00048532,30]
[315031035,1708735862957,-381.06711296,0.00048532,30]
[315031036,1708735862966,-1277.80957967,0.00048532,30]
[315031037,1708735862975,-251.14653118,0.00048532,30]
[315031038,1708735862985,-150.0,0.00048561,30]
[315031039,1708735862994,-152.6064863,0.00048578,30]
[315031040,1708735863005,-150.0,0.00048625,30]
[315031041,1708735863014,-150.0,0.00048657,30]
[315031042,1708735863023,-150.0,0.00048657,30]
[315031043,1708735863032,-150.0,0.00048657,30]
[315031044,1708735863042,-100.27098913,0.00048689,30]
[315031045,1708735863091,-49.72901087,0.00048689,30]
[315031046,1708735863100,-150.0,0.00048738,7]
[315031047,1708735863110,-83.46198913,0.00048743,7]
[315031048,1708735863122,-66.53801087,0.00048743,7]
[315031049,1708735863133,-150.0,0.00048753,30]
[315031050,1708735863143,-200.0,0.00048755,2]
[315031051,1708735863153,-500.0,0.00048766,30]
[315031052,1708735863162,-804.55871432,0.00048767,24]
[315031053,1708735863174,-381.18278025,0.00048767,24]
[315031054,1708735863313,-500.0,0.00027534,2]
[315031055,1708735863323,-310.19335044,0.00027671,2]
[315031056,1708735863334,-189.80664956,0.00027671,2]
[315031057,1708735863345,-500.0,0.00027808,2]
[315031058,1708735863355,-72.49637044,0.00027945,2]
[315031059,1708735863447,-500.0,0.00027397,2]
[315031060,1708735863458,-500.0,0.00027534,2]
[315031061,1708735863468,-427.50362956,0.00027945,2]
[315031062,1708735863477,-500.0,0.00028082,2]
[315031063,1708735863486,-500.0,0.00028219,2]
[315031064,1708735863496,-500.0,0.00028356,2]
[315031065,1708735863507,-368.33702705,0.00028493,2]
[315031066,1708735863726,-294.83806546,0.00027397,2]
[315031067,1708735893016,604.33146623,0.0001,2]
[315031068,1708735966384,4877.61028921,0.0001,2]
[315031069,1708735984408,4877.61028921,0.0001,2]
[315031070,1708736004381,4877.61028921,0.0001,2]
[315031071,1708736024372,4877.61028921,0.0001,2]
[315031072,1708736042375,4877.61028921,0.0001,2]
[315031073,1708736051312,284.45430115,0.000125,2]
[315031074,1708736062382,4877.61028921,0.0001,2]
[315031075,1708736063821,236.80269785,0.00022,2]
[315031077,1708736067417,1489.97793478,0.000137,2]
[315031078,1708736067902,462.00327197,0.00022,2]
[315031080,1708736085359,4877.61028921,0.0001,2]
[315031081,1708736104379,4877.61028921,0.0001,2]
[315031082,1708736120397,4877.61028921,0.0001,2]
[315031083,1708736138397,4877.61028921,0.0001,2]
[315031084,1708736148431,150.0,0.00022,2]
[315031085,1708736162393,632.503572,0.0001,2]
[315031086,1708736162413,244.77593542,0.0001,2]
[315031087,1708736396741,1307.18,0.00020599,2]
[315031088,1708736410667,500.0,0.00022,2]
[315031089,1708736432442,23900.0,0.00022384,2]
[315031090,1708736509788,200.0,0.00022264,2]
[315031091,1708736555120,6064.71,0.00022241,2]
[315031092,1708736557243,177.74,0.00021799,2]
[315031093,1708736558589,177.74,0.00022347,2]
[315031094,1708736617046,4328.89,0.00021976,2]
[315031095,1708736624784,165.93,0.0002191,2]
[315031096,1708736638918,250.0,0.0002191,2]
[315031097,1708736711788,222.0,0.00021872,2]
[315031098,1708736733176,2000.0,0.00021872,2]
[315031099,1708736757554,689.2,0.00021872,2]
[315031100,1708736763566,-359.27642216,0.00022551,2]
[315031101,1708736763589,-196.47,0.00022552,2]
[315031102,1708736763609,-1944.25357784,0.00022585,2]
[315031103,1708736768559,-760.74642216,0.00022585,2]
[315031104,1708736768585,-153.61666857,0.00022598,2]
[315031105,1708736768608,-153.61666851,0.00022632,2]
[315031106,1708736768630,-153.61666851,0.00022665,2]
[315031107,1708736768651,-300.0,0.00022697,2]
[315031108,1708736768673,-150.0,0.00022697,2]
[315031109,1708736768695,-207.5861,0.00022698,2]
[315031110,1708736768718,-620.81747225,0.00022698,2]
[315031111,1708736791804,-500.0,0.0002255,2]
[315031112,1708736824750,1241.82,0.00020211,2]
[315031113,1708736855822,2705.0,0.00022081,2]
[315031114,1708736916187,150.0,0.00022,2]
[315031115,1708736960564,200.0,0.00021977,2]
[315031123,1708737031444,-221.84108223,0.0002247,2]
[315031124,1708737031456,-1185.50332282,0.00022471,2]
[315031125,1708737031467,-1241.82,0.00022474,2]
[315031126,1708737031478,-150.0,0.00022548,2]
[315031127,1708737031489,-163.13,0.00022637,2]
[315031128,1708737031501,-379.18252775,0.00022698,2]
[315031129,1708737031512,-150.0,0.00022698,2]
[315031130,1708737031523,-5000.0,0.00022699,2]
[315031131,1708737031534,-153.61666851,0.00022699,2]
[315031132,1708737031546,-1267.50686587,0.00022699,2]
[315031133,1708737031558,-153.61666851,0.00022733,2]
[315031134,1708737031569,-1000.0,0.00022745,2]
[315031135,1708737031581,-1267.50686587,0.00022749,2]
[315031136,1708737031595,-153.61666851,0.00022766,2]
[315031137,1708737031607,-213.3099955,0.00022796,2]
[315031138,1708737031618,-330.16116647,0.00022797,2]
[315031139,1708737031629,-7447.4806,0.00022799,2]
[315031140,1708737031641,-211.0,0.00022799,2]
[315031141,1708737031652,-1267.50686587,0.000228,2]
[315031142,1708737031663,-4145.2158414,0.000228,2]
[315031143,1708737031683,-693.39932949,0.000228,2]
[315031144,1708737031697,-657.69579395,0.000228,2]
[315031145,1708737031715,-1251.96316176,0.000228,2]
[315031146,1708737031742,-3757.34014404,0.000228,2]
[315031147,1708737031756,-500.0,0.000228,2]
[315031148,1708737031779,-1683.65148639,0.000228,2]
[315031149,1708737031793,-366.7062761,0.000228,2]
[315031150,1708737031815,-350.33533745,0.000228,2]
[315031151,1708737031828,-517.35048957,0.000228,2]
[315031153,1708737031841,-701.42805473,0.000228,2]
[315031178,1708737036036,150.0,0.00022,2]
[315031180,1708737037359,-296.73760249,0.000228,2]
[315031181,1708737037373,-153.61666851,0.000228,2]
[315031182,1708737037382,-531.59071852,0.000228,2]
[315031183,1708737037392,-177.74,0.00022895,2]
[315031184,1708737037401,-1048.1819741,0.00022897,2]
[315031185,1708737037410,-219.90678095,0.00022897,2]
[315031186,1708737037419,-120.41836684,0.00022897,2]
[315031187,1708737037431,-34.58163316,0.00022897,2]
[315031188,1708737037441,-240.8741506,0.00022897,2]
[315031189,1708737037452,-3876.63581755,0.00022897,2]
[315031190,1708737037462,-1211.03521878,0.00022898,2]
[315031191,1708737037471,-499.99,0.00022899,2]
[315031192,1708737037480,-23178.02663084,0.00022899,2]
[315031193,1708737037758,-150.0,0.00022548,2]
[315031194,1708737037768,-1040355.58544432,0.00022899,2]
[315031195,1708737037777,-245000.0,0.000229,2]
[315031196,1708737037786,-1267.50686587,0.000229,2]
[315031197,1708737037795,-542.71143982,0.000229,2]
[315031198,1708737037804,-1039.0,0.00022904,2]
[315031199,1708737037812,-167.18,0.00022932,2]
[315031200,1708737037822,-4997103.98121789,0.00023,2]
[315031201,1708737037831,-127880.65743998,0.00023,2]
[315031202,1708737037840,-1239.36942641,0.00023068,2]
[315031203,1708737037850,-150.0,0.00023096,2]
[315031204,1708737037859,-2564.85930673,0.000232,2]
[315031205,1708737037868,-300.0,0.00023307,2]
[315031206,1708737037877,-163.13,0.00023384,2]
[315031207,1708737037886,-14921.82351728,0.00023435,2]
[315031208,1708737037895,-177.74,0.00023443,2]
[315031209,1708737037904,-1024.37,0.00023588,2]
[315031210,1708737037913,-500.0,0.00023597,2]
[315031211,1708737037923,-4687.3697,0.00023597,2]
[315031212,1708737037933,-5805.7988,0.00023597,2]
[315031213,1708737037942,-1000.0,0.00023597,2]
[315031214,1708737037952,-150.0,0.00023644,2]
[315031215,1708737037962,-1024.37,0.00023712,2]
[315031216,1708737037971,-1024.37,0.00023836,2]
[315031217,1708737037981,-167.18,0.00023878,2]
[315031218,1708737037991,-6064.71,0.00023884,2]
[315031219,1708737038000,-1024.37,0.0002396,2]
[315031220,1708737038010,-177.74,0.00023991,2]
[315031221,1708737038019,-481493.16482061,0.00024,2]
[315031222,1708737038029,-14921.82351728,0.00024071,2]
[315031223,1708737038038,-1024.37,0.00024084,2]
[315031224,1708737038047,-163.13,0.00024131,2]
[315031225,1708737038057,-152.2441223,0.00024192,2]
[315031226,1708737038066,-1024.37,0.00024208,2]
[315031227,1708737038075,-341.35,0.00024245,2]
[315031228,1708737038083,-1024.37,0.00024332,2]
[315031229,1708737038095,-2926.03,0.00024384,2]
[315031230,1708737038105,-1422.1,0.00024384,2]
[315031231,1708737038114,-1024.37,0.00024457,2]
[315031232,1708737038123,-177.74,0.00024539,2]
[315031233,1708737038132,-1024.37,0.00024581,2]
[315031234,1708737038141,-1500.0,0.00024658,3]
[315031235,1708737038152,-250.0,0.00024658,2]
[315031236,1708737038161,-292.67,0.00024658,2]
[315031237,1708737038171,-300.0,0.00024677,2]
[315031238,1708737038179,-1024.37,0.00024705,2]
[315031239,1708737038190,-14921.82351728,0.00024706,2]
[315031240,1708737038200,-1241.82,0.00024738,2]
[315031241,1708737038209,-167.18,0.00024824,2]
[315031242,1708737038218,-1024.37,0.00024829,2]
[315031243,1708737038227,-163.13,0.00024878,2]
[315031244,1708737038236,-1024.37,0.00024953,2]
[315031245,1708737038245,-210.0,0.00024968,2]
[315031246,1708737038255,-150.0,0.00025,2]
[315031247,1708737038263,-1024.37,0.00025077,2]
[315031248,1708737038273,-177.74,0.00025087,2]
[315031249,1708737038283,-832.0,0.0002509,2]
[315031250,1708737038294,-341.35,0.00025103,2]
[315031251,1708737038303,-150.0,0.000252,2]
[315031252,1708737038312,-1024.37,0.00025201,2]
[315031253,1708737038321,-1024.37,0.00025325,2]
[315031254,1708737038330,-14921.82351728,0.00025341,2]
[315031255,1708737038338,-200.0,0.000254,2]
[315031256,1708737038352,-1024.37,0.0002545,2]
[315031257,1708737038361,-542.7114398,0.00025466,2]
[315031258,1708737038371,-6064.71,0.00025528,2]
[315031259,1708737038380,-165.93,0.00025562,2]
[315031260,1708737038389,-1024.37,0.00025574,2]
[315031261,1708737038398,-1000.0,0.00025588,2]
[315031262,1708737038407,-163.13,0.00025626,2]
[315031263,1708737038416,-177.74,0.00025635,2]
[315031264,1708737038425,-1024.37,0.00025698,2]
[315031265,1708737038434,-324.0,0.00025701,2]
[315031266,1708737038443,-167.18,0.0002577,2]
[315031267,1708737038452,-1024.37,0.00025822,2]
[315031268,1708737038462,-1024.37,0.00025946,2]
[315031269,1708737038471,-341.35,0.0002596,2]
[315031270,1708737038481,-14921.82351728,0.00025977,2]
[315031271,1708737038490,-150.0,0.00026079,2]
[315031272,1708737038500,-177.74,0.00026183,2]
[315031273,1708737038510,-163.13,0.00026373,2]
[315031274,1708737038519,-168.67,0.00026442,2]
[315031275,1708737038528,-14921.82351728,0.00026612,2]
[315031276,1708737038538,-167.18,0.00026716,2]
[315031277,1708737038548,-177.74,0.00026731,2]
[315031278,1708737038559,-10053.91627351,0.00026798,2]
[315031279,1708737038569,-10053.91627351,0.00026798,2]
[315031280,1708737038578,-10053.91627351,0.00026798,2]
[315031281,1708737038588,-37616.76929009,0.00026798,2]
[315031282,1708737038599,-37616.76929009,0.00026798,2]
[315031283,1708737038608,-37616.76929009,0.00026798,2]
[315031284,1708737038617,-341.35,0.00026818,2]
[315031285,1708737038627,-1240.65291393,0.00026998,2]
[315031286,1708737038636,-1241.82,0.00027002,2]
[315031287,1708737038647,-324.0,0.00027071,2]
[315031288,1708737038656,-10053.91627351,0.00027099,2]
[315031289,1708737038666,-6064.71,0.00027172,2]
[315031290,1708737038676,-14921.82351728,0.00027248,2]
[315031291,1708737038686,-177.74,0.00027279,2]
[315031292,1708737038695,-10653.693,0.00027297,2]
[315031293,1708737038704,-800.0,0.0002737,2]
[315031294,1708737038714,-155.0,0.00027397,2]
[315031295,1708737038724,-150.0,0.00027397,7]
[315031296,1708737038733,-150.0,0.00027397,7]
[315031297,1708737038742,-201.70261338,0.00027397,2]
[315031298,1708737038751,-2000.0,0.000274,2]
[315031299,1708737038761,-750.0,0.000274,2]
[315031300,1708737038772,-156.49,0.000274,2]
[315031301,1708737038781,-156.49,0.000274,2]
[315031302,1708737038790,-156.49,0.000274,2]
[315031303,1708737038800,-156.49,0.000274,2]
[315031304,1708737038809,-156.49,0.000274,2]
[315031305,1708737038818,-156.49,0.000274,2]
[315031306,1708737038827,-156.49,0.000274,2]
[315031307,1708737038836,-150.0,0.00027644,7]
[315031308,1708737038846,-150.0,0.00027644,7]
[315031309,1708737038856,-16490.23877769,0.0002767,2]
[315031310,1708737038867,-341.35,0.00027675,2]
[315031311,1708737038877,-177.74,0.00027827,2]
[315031312,1708737038886,-14921.82351728,0.00027883,2]
[315031313,1708737038896,-150.0,0.0002789,7]
[315031314,1708737038905,-150.0,0.0002789,7]
[315031315,1708737038914,-1519033.54884589,0.000279,2]
[315031316,1708737038924,-588.12422923,0.00028,7]
[315031317,1708737038934,-973242.19707359,0.00028,2]
[315031318,1708737038943,-1000.0,0.00028,2]
[315031319,1708737038953,-200.16962525,0.00028,2]
[315031320,1708737038963,-37616.76929009,0.00028027,2]
[315031321,1708737038972,-542.7114398,0.00028032,2]
[315031322,1708737038982,-275.72,0.000281,2]
[315031323,1708737038991,-28719.96,0.00028132,2]
[315031324,1708737038999,-28719.96,0.00028132,2]
[315031325,1708737039008,-28719.96,0.00028132,2]
[315031326,1708737039017,-28719.96,0.00028132,2]
[315031327,1708737039027,-28719.96,0.00028132,2]
[315031328,1708737039036,-28719.96,0.00028132,2]
[315031329,1708737039045,-28719.96,0.00028132,2]
[315031330,1708737039054,-28719.96,0.00028132,2]
[315031331,1708737039063,-28719.96,0.00028132,2]
[315031332,1708737039072,-28719.96,0.00028132,2]
[315031333,1708737039081,-28719.96,0.00028132,2]
[315031334,1708737039091,-28719.96,0.00028132,2]
[315031335,1708737039101,-28719.96,0.00028132,2]
[315031336,1708737039110,-28719.96,0.00028132,2]
[315031337,1708737039120,-28719.96,0.00028132,2]
[315031338,1708737039129,-28720.03739558,0.00028132,2]
[315031339,1708737039138,-150.0,0.00028137,7]
[315031340,1708737039147,-177.74,0.00028375,2]
[315031341,1708737039156,-1000.0,0.00028431,2]
[315031342,1708737039165,-324.0,0.00028441,2]
[315031343,1708737039174,-14921.82351728,0.00028518,2]
[315031344,1708737039184,-341.35,0.00028533,2]
[315031345,1708737039194,-10053.91627351,0.00028566,2]
[315031346,1708737039202,-155.0,0.00028767,2]
[315031347,1708737039212,-6064.71,0.00028816,2]
[315031348,1708737039221,-177.74,0.00028923,2]
[315031349,1708737039230,-28581.74430014,0.00029,3]
[315031350,1708737039239,-14921.82351728,0.00029154,2]
[315031351,1708737039248,-165.93,0.00029214,2]
[315031352,1708737039257,-1241.82,0.00029266,2]
[315031353,1708737039266,-341.35,0.0002939,2]
[315031354,1708737039276,-1346.72827234,0.00029403,28]
[315031355,1708737039285,-177.74,0.00029471,2]
[315031356,1708737039299,-168.67,0.00029747,2]
[315031357,1708737039307,-37616.76929009,0.00029769,2]
[315031358,1708737039317,-14921.82351728,0.00029789,2]
[315031359,1708737039326,-1000.0,0.00029799,2]
[315031360,1708737039336,-324.0,0.00029811,2]
[315031361,1708737039346,-757243.79637968,0.0002988,2]
[315031362,1708737039355,-35619.91358617,0.000299,2]
[315031363,1708737039365,-783.35751895,0.00029999,2]
[315031364,1708737039376,-430.7049708,0.0003,2]
[315031365,1708737039386,-279.5022437,0.0003,120]
[315031366,1708737039396,-155.0,0.0003,4]
[315031367,1708737039405,-570.39044227,0.0003,4]
[315031368,1708737039414,-72564.75384289,0.0003,4]
[315031369,1708737039424,-14103.83484867,0.0003,2]
[315031370,1708737039433,-19951.45846812,0.0003,2]
[315031371,1708737039442,-345.06249146,0.0003,2]
[315031372,1708737039451,-314.25366625,0.0003,2]
[315031373,1708737039460,-15223.65608156,0.0003,2]
[315031374,1708737039469,-177.74,0.00030019,2]
[315031375,1708737039479,-10053.91627351,0.00030033,2]
[315031376,1708737039488,-1122.56262266,0.000301,2]
[315031377,1708737039497,-1630.0,0.000301,2]
[315031378,1708737039506,-150.0,0.00030137,2]
[315031379,1708737039516,-155.0,0.00030137,2]
[315031380,1708737039526,-6064.71,0.0003046,2]
[315031381,1708737039535,-166.1,0.0003051,2]
[315031382,1708737039544,-177.74,0.00030567,2]
[315031383,1708737039553,-689.2,0.00030621,2]
[315031384,1708737039562,-150.0,0.00030714,2]
[315031385,1708737039581,-16051.27634089,0.000309,2]
[315031386,1708737039593,-14607.7381104,0.00031,2]
[315031387,1708737039602,-14396.26985613,0.00031,2]
[315031388,1708737039612,-20495.04550257,0.00031,2]
[315031389,1708737039621,-177.74,0.00031115,2]
[315031390,1708737039631,-324.0,0.00031181,2]
[315031391,1708737039641,-1000.0,0.00031274,2]
[315031392,1708737039650,-150.0,0.00031291,2]
[315031393,1708737039660,-8529.65143183,0.0003143,4]
[315031394,1708737039670,-10053.91627351,0.000315,2]
[315031395,1708737039679,-1500.0,0.000315,2]
[315031396,1708737039690,-155.0,0.00031507,2]
[315031397,1708737039700,-37616.76929009,0.00031511,2]
[315031398,1708737039710,-1241.82,0.0003153,2]
[315031399,1708737039720,-177.74,0.00031663,2]
[315031400,1708737039729,-293659.092705,0.000318,3]
[315031401,1708737039738,-150.0,0.00031867,2]
[315031402,1708737039747,-26755.0,0.000321,2]
[315031403,1708737039757,-3860.0,0.000321,2]
[315031404,1708737039766,-354.35,0.00032211,2]
[315031405,1708737039775,-29694.53691357,0.0003232,2]